bitfinex/quotes_ETHUSD_20240816
["timestamp","ask_amount","ask_price","bid_price","bid_amount"]
[1723768001578,7.60776924,2575.5,2575.0,38.88339]
[1723768001579,0.26176993,2575.2,2575.0,38.88339]
[1723768001757,1.83747429,2575.5,2575.1,3.88333]
[1723768001944,0.68866771,2575.4,2575.1,3.88333]
[1723768002147,3.88262,2575.6,2575.1,3.88333]
[1723768002148,0.68866771,2575.3,2575.1,3.88333]
[1723768002444,11.32244,2575.7,2575.2,38.88318]
[1723768002682,0.68876146,2575.6,2575.3,2.3959]
[1723768002859,0.26180562,2575.5,2575.3,2.3959]
[1723768003072,11.32244,2575.7,2575.3,2.3959]
[1723768003073,0.26180562,2575.4,2575.3,2.3959]
[1723768003260,0.26180562,2575.6,2575.3,37.3959]
[1723768003582,0.26180562,2575.5,2575.3,37.3959]
[1723768003880,0.26180562,2575.4,2575.3,37.3959]
[1723768004083,0.26180562,2575.6,2575.3,37.3959]
[1723768004290,0.26180562,2575.5,2575.3,37.3959]
[1723768004587,2.4907,2576.1,2575.3,35.0]
[1723768004789,3.88289,2575.4,2575.3,35.0]
[1723768004987,0.26180833,2575.4,2575.3,35.0]
[1723768005291,4.14469251,2575.4,2575.3,35.0]
[1723768005587,4.57160811,2575.4,2575.3,35.0]
[1723768005793,4.57157927,2575.4,2575.3,35.0]
[1723768005966,6.02927048,2575.4,2575.3,35.0]
[1723768006374,6.02921452,2575.4,2575.3,35.0]
[1723768007877,6.02921452,2575.4,2574.6,6.30271]
[1723768007878,3.88312,2575.3,2574.7,3.88392]
[1723768008182,0.26177367,2575.2,2574.7,3.88392]
[1723768008382,0.26177367,2575.2,2574.8,35.0]
[1723768008783,0.26169244,2575.1,2574.8,35.0]
[1723768008995,3.88312,2575.3,2574.8,35.0]
[1723768009299,0.26169581,2575.2,2574.8,35.0]
[1723768009899,3.88289,2575.4,2574.8,35.0]
[1723768009900,0.26169581,2575.1,2574.8,35.0]
[1723768010075,3.88307,2575.3,2574.8,35.0]
[1723768010264,0.26168107,2575.2,2574.8,35.0]
[1723768010765,4.14510107,2575.1,2574.8,35.0]
[1723768010966,0.26168107,2575.0,2574.8,38.88373]
[1723768011167,3.88311,2575.3,2574.8,38.88373]
[1723768011367,0.2616804,2575.2,2574.8,38.88373]
[1723768012785,3.88311,2575.3,2574.8,38.88373]
[1723768012969,0.26172649,2575.2,2574.8,38.88373]
[1723768013301,0.26172649,2575.1,2575.0,3.88349]
[1723768013467,3.72477065,2575.7,2575.3,3.88296]
[1723768013666,3.88224,2575.9,2575.3,6.31736]
[1723768013667,0.26171434,2575.6,2575.3,6.31736]
[1723768013866,0.26171434,2575.6,2575.1,3.88324]
[1723768013867,0.26171434,2575.5,2575.2,3.88317]
[1723768014066,0.26171434,2575.4,2575.1,3.88324]
[1723768014410,0.26171434,2575.4,2575.0,2.4344]
[1723768014411,0.26171434,2575.3,2575.2,35.0]
[1723768016869,0.26169717,2575.3,2575.2,35.0]
[1723768017378,0.26171199,2575.3,2575.2,35.0]
[1723768019509,0.26171199,2575.3,2574.8,7.76742]
[1723768019678,3.88296,2575.4,2574.8,7.76742]
[1723768019679,0.26171199,2575.2,2574.8,7.76742]
[1723768019878,0.26171199,2575.1,2574.8,7.76742]
[1723768020098,0.26171199,2575.0,2574.9,35.0]
[1723768020306,0.26171199,2575.3,2574.9,35.0]
[1723768020499,0.26171199,2575.2,2574.9,38.88358]
[1723768020687,0.26171199,2575.1,2574.9,38.88358]
[1723768020897,0.26171199,2575.0,2574.9,38.88358]
[1723768021103,0.26171199,2575.4,2574.9,38.88358]
[1723768021288,0.26171199,2575.3,2574.9,38.88358]
[1723768021492,0.26171199,2575.2,2575.1,3.88328]
[1723768022008,0.26171199,2575.2,2574.7,2.2938]
[1723768022310,3.72471439,2575.6,2575.2,3.88317]
[1723768022611,0.26181661,2575.5,2575.2,3.88317]
[1723768022810,7.44,2575.7,2575.3,3.88304]
[1723768022976,0.26182555,2575.6,2575.3,3.88304]
[1723768023179,0.26182555,2575.5,2575.3,3.88304]
[1723768023376,0.26182555,2575.4,2575.3,3.88304]
[1723768023594,8.98005239,2575.9,2575.4,3.88282]
[1723768023822,0.26166571,2575.8,2575.4,3.88282]
[1723768023978,0.26170897,2575.7,2575.3,3.88304]
[1723768024178,0.26170897,2575.6,2575.3,3.88304]
[1723768024441,0.26170897,2575.5,2575.3,3.88304]
[1723768024606,7.60739525,2575.8,2575.3,3.88304]
[1723768024607,0.26170897,2575.4,2575.3,3.88304]
[1723768026189,0.26170897,2575.7,2575.3,3.88304]
[1723768026388,0.26170897,2575.6,2575.3,3.88304]
[1723768026621,0.26170897,2575.5,2575.3,3.88304]
[1723768026780,0.26170897,2575.4,2575.3,3.88304]
[1723768026979,0.26170897,2575.4,2575.1,41.19724]
[1723768027283,0.26170897,2575.3,2575.1,38.88324]
[1723768027481,0.26170897,2575.2,2575.1,38.88324]
[1723768028014,0.26170897,2575.2,2575.1,35.0]
[1723768028422,0.26184604,2575.2,2575.1,35.0]
[1723768028648,0.26184604,2575.2,2574.4,0.53068874]
[1723768028649,3.88382,2574.8,2574.3,4.699227]
[1723768028790,0.26184604,2574.7,2574.3,3.88446]
[1723768029120,0.26184604,2574.6,2574.4,35.0]
[1723768029332,3.88382,2574.8,2574.4,35.0]
[1723768029333,0.26184604,2574.5,2574.4,35.0]
[1723768030607,0.68880092,2574.5,2574.4,35.0]
[1723768030817,0.26184604,2574.5,2574.4,35.0]
[1723768032223,0.26182897,2574.5,2574.4,35.0]
[1723768032443,0.26182897,2574.7,2574.2,3.88469]
[1723768032590,0.68870557,2574.6,2574.4,3.88431]
[1723768032791,7.44,2575.0,2574.7,3.88386]
[1723768033026,0.26178609,2574.9,2574.8,38.88379]
[1723768033227,0.26178609,2575.2,2574.8,41.15179]
[1723768033409,0.26178609,2575.1,2574.8,41.15179]
[1723768033618,0.26178609,2575.0,2574.8,41.15179]
[1723768033830,4.62042153,2575.4,2574.8,41.15179]
[1723768033831,0.26178609,2574.9,2574.8,41.15179]
[1723768034231,0.26178609,2575.3,2574.8,41.15179]
[1723768034396,0.68864039,2575.2,2574.8,41.15179]
[1723768034599,0.68864039,2575.1,2574.8,41.15179]
[1723768034801,0.26178609,2575.0,2574.8,41.15179]
[1723768035000,0.26178609,2574.9,2574.8,41.15179]
[1723768035199,0.26178609,2574.9,2574.8,38.88379]
[1723768035703,0.7371842,2575.3,2574.8,38.88379]
[1723768035704,0.26178609,2575.2,2574.8,38.88379]
[1723768035903,0.68856845,2575.1,2574.8,38.88379]
[1723768036104,0.26171879,2575.0,2574.8,38.88379]
[1723768036332,0.26171879,2574.9,2574.8,42.76748]
[1723768036634,0.73717364,2575.3,2574.9,6.24151]
[1723768036938,0.68847666,2575.2,2574.9,6.24151]
[1723768037235,0.68847666,2575.1,2575.0,3.88349]
[1723768037549,0.26170985,2575.1,2575.0,3.88349]
[1723768037706,0.26170985,2575.1,2574.9,6.24154]
[1723768037707,0.73711689,2575.5,2575.1,3.88334]
[1723768037906,0.68844457,2575.4,2575.1,3.88334]
[1723768038135,0.68844457,2575.3,2575.1,3.88334]
[1723768038438,0.26168955,2575.2,2574.9,6.24142]
[1723768038737,0.26168955,2575.1,2574.9,3.88352]
[1723768038917,0.26168955,2575.0,2574.9,3.88352]
[1723768039112,5.81024154,2575.4,2574.9,3.88352]
[1723768039113,0.26168955,2575.3,2574.9,3.88352]
[1723768039492,0.68846374,2575.2,2574.9,3.88352]
[1723768039651,0.26168955,2575.1,2574.9,3.88352]
[1723768040008,0.26168955,2575.0,2574.9,3.88352]
[1723768040205,0.26168955,2575.3,2574.9,3.88352]
[1723768040432,13.84522684,2575.5,2574.9,3.88352]
[1723768040433,10.12056,2575.5,2574.9,3.88352]
[1723768040624,0.42677399,2575.2,2574.9,3.88352]
[1723768040825,0.26170608,2575.1,2574.9,3.88352]
[1723768041063,7.44,2575.6,2575.0,6.19039]
[1723768041208,5.30842738,2575.5,2575.0,2.3069]
[1723768041407,5.30842738,2575.5,2574.9,7.76706]
[1723768041408,0.68850132,2575.4,2574.9,7.76706]
[1723768041608,0.68850132,2575.3,2574.9,7.76706]
[1723768041922,0.26170924,2575.2,2575.1,3.88334]
[1723768042504,4.61987606,2575.6,2575.2,6.2847]
[1723768042505,0.73718606,2575.6,2575.2,6.2847]
[1723768042746,0.26171023,2575.5,2575.2,6.2847]
[1723768042903,0.26171023,2575.4,2575.2,6.2847]
[1723768043264,0.24098023,2575.3,2575.2,6.2847]
[1723768043466,0.73726262,2575.8,2575.2,2.4016]
[1723768043613,4.30935607,2575.7,2575.2,2.4016]
[1723768043963,0.42683607,2575.6,2575.2,2.4016]
[1723768045651,0.42683607,2575.6,2575.2,6.28475]
[1723768046348,0.42683607,2575.6,2575.2,2.4016]
[1723768046557,1.16409838,2575.6,2575.2,2.4016]
[1723768046764,0.42683607,2575.5,2575.2,2.4016]
[1723768047053,0.42683607,2575.4,2575.2,2.4016]
[1723768047351,4.61977845,2575.7,2575.2,2.4016]
[1723768047516,0.4268307,2575.6,2575.2,2.4016]
[1723768047846,4.61977845,2575.7,2575.1,3.88325]
[1723768047847,0.4268307,2575.5,2575.1,3.88325]
[1723768048011,0.4268307,2575.4,2575.1,3.88325]
[1723768048214,0.4268307,2575.3,2575.1,3.88325]
[1723768048426,4.61989576,2575.6,2575.1,3.88325]
[1723768048634,0.42681081,2575.5,2575.1,3.88325]
[1723768048846,0.42681081,2575.4,2575.1,3.88325]
[1723768049044,0.42681081,2575.3,2575.1,3.88325]
[1723768049249,3.88252,2575.7,2575.1,3.88321]
[1723768049410,0.42681745,2575.6,2575.1,3.88321]
[1723768049615,1.16403999,2575.6,2575.1,3.88321]
[1723768050252,5.04664999,2575.6,2575.1,3.88321]
[1723768050550,0.42681745,2575.5,2575.1,3.88321]
[1723768050853,4.30985745,2575.4,2574.8,3.88374]
[1723768051026,0.42681745,2575.3,2574.8,3.88374]
[1723768051225,0.42681745,2575.2,2574.8,3.88374]
[1723768051440,4.62026254,2575.4,2574.8,3.88374]
[1723768051621,0.42679073,2575.3,2574.8,3.88374]
[1723768051822,0.42679073,2575.2,2574.8,3.88374]
[1723768052026,7.76557,2575.5,2574.9,5.23378715]
[1723768052250,0.42678661,2575.4,2574.9,3.88361]
[1723768052552,3.88276,2575.5,2575.0,1.35013869]
[1723768052553,0.42678661,2575.3,2575.0,1.35013869]
[1723768052715,3.88276,2575.5,2575.0,2.251]
[1723768053046,0.42700208,2575.4,2575.0,2.251]
[1723768053347,0.42700208,2575.3,2575.0,2.251]
[1723768053547,3.88276,2575.5,2575.0,2.251]
[1723768053845,0.4269918,2575.4,2575.0,2.251]
[1723768054064,0.4269918,2575.3,2575.0,2.251]
[1723768054255,7.76558,2575.5,2575.0,2.251]
[1723768054550,4.30983102,2575.4,2575.0,2.251]
[1723768054751,0.42692102,2575.3,2575.0,2.251]
[1723768055062,0.42692564,2575.2,2575.0,2.251]
[1723768055353,0.26145964,2575.1,2575.0,2.251]
[1723768055517,0.26145964,2575.4,2575.0,2.251]
[1723768055853,0.68807998,2575.3,2575.0,2.251]
[1723768056050,0.26145964,2575.2,2574.9,3.88354]
[1723768056227,0.26145964,2575.1,2574.9,3.88354]
[1723768056551,3.88276,2575.5,2574.9,7.7671]
[1723768056716,0.68815627,2575.4,2574.9,7.7671]
[1723768056921,0.68815627,2575.3,2574.9,7.7671]
[1723768057116,0.68815627,2575.2,2574.9,7.76709]
[1723768057441,0.2614875,2575.1,2574.9,7.76709]
[1723768057644,3.88276,2575.5,2574.9,3.88354]
[1723768057947,0.6882327,2575.4,2574.9,3.88354]
[1723768058119,0.6882327,2575.3,2574.9,3.88354]
[1723768058328,0.26151658,2575.2,2574.9,3.88354]
[1723768058528,0.26151658,2575.1,2574.9,3.88354]
[1723768058728,7.76558,2575.5,2574.9,3.88354]
[1723768058935,0.42672013,2575.4,2574.9,3.88354]
[1723768059148,0.68822791,2575.3,2574.9,3.88354]
[1723768059349,0.68820948,2575.2,2574.9,3.88354]
[1723768059553,0.26150778,2575.1,2574.9,3.88354]
[1723768059741,3.88276,2575.5,2574.9,3.88354]
[1723768059947,0.6882126,2575.4,2574.9,7.7671]
[1723768060146,0.6882126,2575.3,2574.9,7.7671]
[1723768060344,0.6882126,2575.2,2574.9,3.88354]
[1723768060543,0.26150854,2575.1,2574.9,7.7671]
[1723768060757,4.61979409,2575.5,2574.9,7.7671]
[1723768060962,0.68821376,2575.4,2574.9,7.7671]
[1723768061157,0.68821376,2575.3,2574.9,7.7671]
[1723768061357,0.68821376,2575.2,2574.9,7.7671]
[1723768061559,0.26150716,2575.1,2574.9,7.7671]
[1723768061763,0.26150716,2575.0,2574.9,7.7671]
[1723768061983,0.26150716,2575.4,2575.0,3.8834]
[1723768062139,0.68821387,2575.3,2575.0,3.8834]
[1723768062468,0.26150751,2575.2,2575.0,3.8834]
[1723768062667,3.72398369,2575.6,2575.3,3.88302]
[1723768062839,0.26149843,2575.5,2575.4,10.16468]
[1723768063039,7.44,2575.9,2575.7,3.88242]
[1723768063228,0.26150123,2575.8,2575.7,3.88242]
[1723768063567,0.26150123,2575.8,2575.7,7.76485]
[1723768063775,0.26150123,2575.8,2575.7,10.16375]
[1723768063981,0.26150123,2575.8,2575.7,6.28132]
[1723768064128,0.26150123,2575.8,2575.5,3.88264]
[1723768064328,0.26150123,2575.7,2575.5,3.88264]
[1723768064666,0.26150123,2575.6,2575.4,6.28178]
[1723768064861,0.26150123,2575.5,2575.4,6.28178]
[1723768065267,4.14369123,2575.9,2575.3,3.88294]
[1723768065580,6.23857,2576.0,2575.3,3.88294]
[1723768065581,4.57070741,2575.8,2575.3,3.88303]
[1723768065790,0.68828741,2575.7,2575.3,3.88303]
[1723768065984,3.88242,2575.8,2575.3,3.88303]
[1723768065985,0.26150123,2575.6,2575.3,3.88303]
[1723768066141,3.88242,2575.8,2575.3,3.88303]
[1723768066142,0.26150123,2575.5,2575.3,3.88303]
[1723768066347,3.88242,2575.8,2575.3,3.88303]
[1723768066348,0.26150123,2575.4,2575.3,3.88303]
[1723768066956,0.26150123,2575.7,2575.3,3.88303]
[1723768067246,0.26150123,2575.6,2575.3,3.88295]
[1723768067606,0.26150123,2575.5,2575.3,7.7659]
[1723768067795,3.72364296,2576.0,2575.5,7.76529]
[1723768068004,0.68812111,2575.9,2575.7,3.88243]
[1723768068288,3.88173,2576.2,2575.8,2.2883]
[1723768068440,0.68816449,2576.1,2575.8,2.2883]
[1723768068639,0.68815229,2576.0,2575.8,2.2883]
[1723768068865,0.26144876,2575.9,2575.8,2.2883]
[1723768069940,0.26144876,2575.9,2575.8,6.17058]
[1723768070286,3.72378961,2576.5,2575.9,3.88204]
[1723768070287,7.60509961,2576.5,2575.9,3.88204]
[1723768070585,0.68822469,2576.4,2575.9,3.88204]
[1723768070790,0.68822571,2576.3,2576.0,3.88195]
[1723768070972,0.26147318,2576.2,2576.0,3.88195]
[1723768071152,0.26147318,2576.1,2576.0,3.88195]
[1723768071881,0.26147318,2576.5,2576.0,3.88195]
[1723768072185,3.88117,2576.6,2575.8,2.2883]
[1723768072186,0.26147318,2576.4,2576.2,3.88167]
[1723768072354,7.60377361,2576.8,2576.3,6.2809]
[1723768072569,7.60377361,2576.8,2576.4,3.88138]
[1723768072570,0.68786528,2576.7,2576.4,3.88138]
[1723768072884,0.26132627,2576.6,2576.4,3.88138]
[1723768073092,0.26132627,2576.5,2576.4,3.88128]
[1723768073253,3.88053,2577.0,2576.4,3.88128]
[1723768073455,0.68788372,2576.9,2576.4,3.88128]
[1723768073658,0.26132641,2576.8,2576.4,3.88128]
[1723768073876,0.26132641,2576.7,2576.4,3.88128]
[1723768074040,0.26132641,2576.6,2576.4,3.88128]
[1723768074243,2.4489,2576.7,2575.9,2.4548]
[1723768074565,3.8815,2576.4,2575.9,2.4548]
[1723768074763,3.8815,2576.4,2575.9,6.33693]
[1723768074764,0.26135936,2576.3,2575.9,6.33693]
[1723768074963,3.88117,2576.6,2576.0,3.88184]
[1723768075142,4.88646736,2576.6,2576.0,3.88184]
[1723768075337,0.26142551,2576.5,2576.0,3.88184]
[1723768075581,4.14268551,2576.5,2576.0,3.88184]
[1723768075782,0.26142551,2576.4,2576.0,3.88184]
[1723768075995,4.14283551,2576.4,2575.9,2.4548]
[1723768076290,0.26141763,2576.3,2575.9,2.4548]
[1723768076450,0.26139364,2576.2,2575.9,2.4548]
[1723768076646,8.66581029,2576.4,2575.9,2.4548]
[1723768076851,0.26142807,2576.3,2575.9,2.4548]
[1723768077045,4.78434029,2576.4,2575.9,2.4548]
[1723768077284,0.26143055,2576.3,2575.9,6.33692]
[1723768079177,3.88141,2576.4,2575.9,6.33692]
[1723768079404,0.26139304,2576.3,2576.1,3.88181]
[1723768079605,3.88117,2576.6,2576.1,3.88181]
[1723768079878,0.2614009,2576.5,2575.9,10.21893]
[1723768080102,4.1426409,2576.5,2575.9,10.21893]
[1723768080247,0.26140006,2576.4,2575.9,10.21893]
[1723768080647,5.08689468,2576.4,2575.9,2.4548]
[1723768080850,0.26140006,2576.3,2575.9,2.4548]
[1723768081045,2.3514,2576.2,2575.6,2.2599]
[1723768081257,2.3514,2576.2,2575.3,5.18973317]
[1723768081258,4.40459007,2576.1,2575.5,3.88261]
[1723768081456,4.40459007,2576.1,2575.4,2.2599]
[1723768081457,0.26140006,2576.0,2575.4,2.2599]
[1723768081680,3.88191,2576.1,2575.4,2.2599]
[1723768081681,3.88216,2575.9,2575.4,6.14277]
[1723768081856,3.88187,2576.1,2575.6,35.0]
[1723768082057,3.88221,2575.9,2575.6,35.0]
[1723768082274,0.26139247,2575.8,2575.6,35.0]
[1723768083163,4.14377247,2575.8,2575.6,35.0]
[1723768083500,3.88221,2575.9,2575.6,35.0]
[1723768083661,0.26140055,2575.8,2575.6,35.0]
[1723768084364,11.16281516,2576.4,2575.7,6.14533]
[1723768084365,3.88165,2576.3,2575.7,6.14533]
[1723768084563,11.32151,2576.4,2575.7,6.14533]
[1723768084564,4.56970815,2576.2,2575.7,6.14533]
[1723768084778,0.26139793,2576.1,2575.7,6.14533]
[1723768085149,0.2613962,2576.0,2575.7,6.14533]
[1723768085354,0.2613962,2575.9,2575.7,6.14533]
[1723768085664,3.88171,2576.2,2575.7,6.14533]
[1723768085865,0.26140445,2576.1,2575.7,6.14533]
[1723768086298,4.14326445,2576.1,2575.7,2.2629]
[1723768086586,0.26140445,2576.0,2575.7,2.2629]
[1723768086788,0.26140445,2576.0,2575.8,35.0]
[1723768087289,3.88254,2575.7,2575.0,2.3594]
[1723768087470,3.88274,2575.5,2575.0,2.3594]
[1723768087674,0.26140445,2575.4,2575.0,2.3594]
[1723768087991,0.26140445,2575.4,2575.1,35.0]
[1723768089073,3.8825,2575.7,2575.1,38.88331]
[1723768089322,4.14405587,2575.6,2575.1,35.0]
[1723768089653,0.26134587,2575.5,2575.1,35.0]
[1723768089916,8.02694587,2575.5,2575.1,35.0]
[1723768090099,0.26134587,2575.4,2575.1,35.0]
[1723768092485,0.26134587,2575.4,2575.1,38.88333]
[1723768092678,3.88259,2575.6,2575.1,38.88333]
[1723768092879,0.26149274,2575.5,2575.1,38.88333]
[1723768094624,4.14426274,2575.5,2575.1,35.0]
[1723768094774,0.26149429,2575.4,2575.1,35.0]
[1723768097429,0.26149429,2575.3,2575.1,35.0]
[1723768097600,6.15679,2575.6,2575.1,35.0]
[1723768097793,0.68828888,2575.5,2575.1,35.0]
[1723768097997,0.26153056,2575.4,2575.1,35.0]
[1723768098200,0.26153056,2575.3,2575.1,35.0]
[1723768098398,3.88259,2575.6,2575.1,35.0]
[1723768098631,0.68842002,2575.5,2575.1,35.0]
[1723768098830,0.26158605,2575.4,2575.1,35.0]
[1723768099010,0.26161015,2575.3,2575.1,35.0]
[1723768099214,7.76529,2575.6,2575.1,35.0]
[1723768099443,0.68848735,2575.5,2575.1,35.0]
[1723768099604,0.26161314,2575.4,2575.1,35.0]
[1723768099941,0.26161314,2575.3,2575.1,35.0]
[1723768100103,3.88274,2575.5,2575.1,35.0]
[1723768100446,3.88319,2575.2,2575.1,35.0]
[1723768100598,4.14481286,2575.2,2575.1,35.0]
[1723768101603,0.26160426,2575.2,2575.1,35.0]
[1723768102897,3.88353,2575.0,2574.5,6.24285]
[1723768103124,4.14526189,2574.9,2574.2,2.3587]
[1723768103450,4.14526189,2574.9,2574.3,35.0]
[1723768103451,3.8844,2574.4,2574.3,35.0]
[1723768103805,3.88412,2574.6,2574.3,35.0]
[1723768104010,3.88432,2574.5,2574.3,35.0]
[1723768106341,3.8844,2574.4,2574.3,35.0]
[1723768106859,3.88387,2574.8,2574.4,2.4574]
[1723768107345,0.26165574,2574.7,2574.4,2.4574]
[1723768107502,3.88387,2574.8,2574.4,2.4574]
[1723768107703,0.26166057,2574.7,2574.4,2.4574]
[1723768107933,3.88429,2574.5,2574.3,35.0]
[1723768108907,3.88418,2574.6,2574.3,35.0]
[1723768109347,0.26166657,2574.5,2574.3,35.0]
[1723768110024,4.14594657,2574.5,2574.3,35.0]
[1723768110224,3.88418,2574.6,2574.3,35.0]
[1723768110407,3.88387,2574.8,2574.3,35.0]
[1723768110609,0.26167995,2574.7,2574.4,2.4287]
[1723768111307,4.14563995,2574.7,2574.4,2.4287]
[1723768111507,3.88396,2574.7,2574.4,2.4287]
[1723768112842,3.88384,2574.8,2574.4,2.4287]
[1723768113046,4.14562484,2574.7,2574.4,2.4287]
[1723768113340,3.88395,2574.7,2574.4,2.4287]
[1723768113640,3.88377,2574.9,2574.5,35.0]
[1723768113857,4.14546451,2574.8,2574.5,35.0]
[1723768114006,0.26167451,2574.7,2574.5,35.0]
[1723768114206,3.88409,2574.6,2574.5,35.0]
[1723768114469,3.88442,2574.4,2573.9,6.27665]
[1723768114744,4.94884696,2574.6,2573.9,2.3916]
[1723768114745,7.76958,2574.2,2573.9,2.3916]
[1723768114947,7.76958,2574.2,2574.0,35.0]
[1723768115444,3.88479,2574.2,2574.0,35.0]
[1723768115635,3.88485,2574.1,2573.7,2.3916]
[1723768116218,3.88501,2574.0,2573.7,2.3916]
[1723768116616,3.88501,2574.0,2573.5,6.26828817]
[1723768117039,3.88501,2574.0,2573.6,35.0]
[1723768117357,3.88488,2574.1,2573.6,35.0]
[1723768117512,3.88502,2574.0,2573.6,35.0]
[1723768118111,3.88519,2573.9,2573.6,35.0]
[1723768118557,3.88545,2573.7,2573.6,35.0]
[1723768118962,4.14709167,2573.7,2573.6,35.0]
[1723768119463,3.8856,2573.6,2573.5,0.12192817]
[1723768119676,4.14727397,2573.6,2573.5,0.12192817]
[1723768119829,4.14727397,2573.6,2573.5,35.12192817]
[1723768120015,3.8856,2573.6,2573.5,35.12192817]
[1723768120215,5.02955988,2573.6,2573.5,0.12192817]
[1723768120425,8.65348092,2573.6,2573.5,0.12192817]
[1723768120651,3.8856,2573.6,2573.5,0.12192817]
[1723768120825,8.03287099,2573.6,2573.5,0.12192817]
[1723768122836,8.03287872,2573.6,2573.5,0.12192817]
[1723768123016,7.7712,2573.6,2573.5,0.12192817]
[1723768123217,8.54832,2573.6,2573.5,0.12192817]
[1723768124350,11.24478617,2573.6,2573.5,0.12192817]
[1723768124744,15.13038617,2573.6,2573.5,0.12192817]
[1723768126024,19.56598617,2573.6,2573.5,0.12192817]
[1723768126218,23.29035486,2573.6,2573.5,0.12192817]
[1723768126749,15.68038617,2573.6,2573.5,0.12192817]
[1723768127144,15.68037784,2573.6,2573.5,0.12192817]
[1723768129424,11.09117784,2573.6,2573.5,0.12192817]
[1723768129842,14.97677784,2573.6,2573.5,0.12192817]
[1723768130721,34.74677784,2573.6,2573.5,0.12192817]
[1723768130950,35.29677784,2573.6,2573.5,0.12192817]
[1723768131156,15.26512,2573.6,2573.5,0.12192817]
[1723768131384,15.5267414,2573.6,2573.5,0.12192817]
[1723768133441,3.88742,2572.4,2572.3,2.4022]
[1723768133660,3.88737,2572.5,2572.3,2.4022]
[1723768133859,3.8874,2572.5,2572.3,2.4022]
[1723768134063,3.88742,2572.4,2572.3,2.4022]
[1723768134449,7.44,2572.8,2572.3,2.4022]
[1723768134649,3.88706,2572.7,2572.3,2.4022]
[1723768135245,7.77412,2572.7,2572.3,2.4022]
[1723768135978,3.88727,2572.5,2572.3,2.4022]
[1723768136268,3.88768,2572.3,2572.0,2.4177]
[1723768136466,3.88781,2572.2,2572.0,2.4177]
[1723768136983,3.88787,2572.1,2572.0,2.4177]
[1723768137171,7.77634,2571.9,2571.8,35.0]
[1723768137746,3.88795,2572.1,2571.8,35.0]
[1723768137992,3.88795,2572.1,2571.8,37.4545]
[1723768138380,3.88817,2571.9,2571.8,35.0]
[1723768138698,5.5587,2572.2,2570.9,4.0147557]
[1723768138850,3.88876,2571.6,2571.2,2.4545]
[1723768139180,7.44,2572.0,2571.2,2.4545]
[1723768139181,3.88893,2571.4,2571.2,2.4545]
[1723768139394,3.88878,2571.5,2571.2,2.4545]
[1723768139395,3.88908,2571.3,2571.2,2.4545]
[1723768139598,7.77768,2571.5,2571.2,2.4545]
[1723768139814,3.88878,2571.5,2571.2,37.4545]
[1723768140026,7.77766,2571.5,2571.2,37.4545]
[1723768140375,3.88904,2571.4,2571.2,37.4545]
[1723768140579,3.88908,2571.3,2571.2,37.4545]
[1723768140771,3.88908,2571.3,2571.2,35.0]
[1723768140990,7.77816,2571.3,2571.2,35.0]
[1723768141207,3.88936,2571.2,2570.9,2.5795957]
[1723768141828,3.88936,2571.2,2571.0,35.0]
[1723768142878,3.88895,2571.4,2571.0,35.0]
[1723768143213,11.32868,2571.6,2571.1,6.14797]
[1723768143214,7.44,2571.6,2571.1,6.14797]
[1723768143537,7.44,2571.6,2571.1,2.2587]
[1723768143538,3.88908,2571.3,2571.1,2.2587]
[1723768143838,7.77906,2571.0,2570.9,0.1250957]
[1723768144384,14.23898041,2571.0,2570.9,0.1250957]
[1723768144766,16.21287845,2571.0,2570.9,0.1250957]
[1723768145171,11.77334845,2571.0,2570.9,0.1250957]
[1723768145467,15.66292602,2571.0,2570.9,0.1250957]
[1723768145765,9.46439602,2571.0,2570.9,0.1250957]
[1723768145977,9.46439461,2571.0,2570.9,0.1250957]
[1723768146165,11.62415804,2571.0,2570.9,0.1250957]
[1723768146369,16.32512318,2571.0,2570.9,0.1250957]
[1723768146934,12.43559318,2571.0,2570.9,0.1250957]
[1723768147148,9.75295804,2571.0,2570.9,0.1250957]
[1723768147368,9.46439974,2571.0,2570.9,0.1250957]
[1723768147566,9.20295804,2571.0,2570.9,0.1250957]
[1723768147780,3.88953,2571.0,2570.9,0.1250957]
[1723768147999,7.77863,2571.2,2570.9,0.1250957]
[1723768148195,3.88929,2571.2,2570.9,2.4522957]
[1723768148337,7.77906,2571.0,2570.9,0.1250957]
[1723768148539,11.66859,2571.0,2570.9,0.1250957]
[1723768148759,8.04051943,2571.0,2570.9,0.1250957]
[1723768149241,7.77906,2571.0,2570.9,0.1250957]
[1723768149485,9.180397,2571.0,2570.9,0.1250957]
[1723768151191,16.31576889,2571.0,2570.9,0.1250957]
[1723768151692,23.46329889,2571.0,2570.9,0.1250957]
[1723768152675,23.46329889,2571.0,2570.9,5.7e-06]
[1723768152676,39.34376889,2571.0,2570.9,5.7e-06]
[1723768152881,33.65136889,2571.0,2570.9,5.7e-06]
[1723768153697,33.389927,2571.0,2570.9,5.7e-06]
[1723768153901,33.65141249,2571.0,2570.9,5.7e-06]
[1723768154243,43.06394249,2571.0,2570.9,5.7e-06]
[1723768154476,39.17441382,2571.0,2570.9,5.7e-06]
[1723768156199,43.06394382,2571.0,2570.9,5.7e-06]
[1723768157374,43.06394382,2571.0,2569.2,7.15018]
[1723768157375,2.345,2570.1,2568.9,2.4312]
[1723768157689,2.345,2570.1,2568.6,3.89803]
[1723768157690,3.89163,2569.7,2569.0,3.89244]
[1723768157923,3.89163,2569.7,2569.2,2.4312]
[1723768158206,3.89185,2569.5,2569.2,2.4312]
[1723768158420,3.89158,2569.7,2569.2,2.4312]
[1723768158712,5.603,2570.5,2569.2,2.4312]
[1723768159011,5.603,2570.5,2569.4,2.3986]
[1723768159012,3.89115,2570.0,2569.4,2.3986]
[1723768159158,1.56576985,2570.4,2569.4,2.3986]
[1723768159159,3.89085,2570.2,2569.4,2.85978284]
[1723768159356,3.89088,2570.2,2569.4,6.75165284]
[1723768159560,3.89088,2570.2,2569.6,2.3986]
[1723768159804,3.89088,2570.2,2569.7,2.3986]